bitfinex/quotes_SOLUSD_20240814
["timestamp","ask_amount","ask_price","bid_price","bid_amount"]
[1723644791550,76.01,146.59,146.43,56.01]
[1723644791866,76.01,146.59,146.45,17.0704]
[1723644792056,20.0,146.57,146.43,56.01]
[1723644792354,76.01,146.65,146.44,20.0]
[1723644792355,56.01,146.56,146.44,20.0]
[1723644792555,56.01,146.56,146.44,17.0712]
[1723644792760,76.01,146.62,146.45,20.0]
[1723644793056,56.01,146.65,146.54,6.8237]
[1723644793238,20.0,146.71,146.57,6.8223]
[1723644793437,20.0,146.71,146.58,65.0]
[1723644793643,56.01,146.72,146.58,20.0]
[1723644793840,56.01,146.72,146.59,45.0]
[1723644794165,56.01,146.72,146.62,6.8203]
[1723644794460,56.01,146.68,146.43,20.0]
[1723644794753,56.01,146.65,146.57,20.0]
[1723644794944,56.01,146.62,146.52,6.8249]
[1723644795149,56.01,146.62,146.56,16.3864]
[1723644795357,56.01,146.62,146.49,38.1929]
[1723644795539,56.01,146.56,146.49,21.1278]
[1723644795737,56.01,146.56,146.34,20.0]
[1723644795738,56.01,146.53,146.36,21.1278]
[1723644795936,56.01,146.53,146.43,17.0727]
[1723644796264,56.01,146.53,146.36,21.1278]
[1723644796265,56.01,146.47,146.36,48.486144]
[1723644796427,56.01,146.47,146.36,21.1278]
[1723644796634,56.01,146.44,146.36,21.1278]
[1723644797159,56.01,146.41,146.33,0.15655091]
[1723644797530,56.01,146.44,146.33,0.15655091]
[1723644797764,20.0,146.43,146.33,0.15655091]
[1723644797946,56.01,146.44,146.33,0.15655091]
[1723644799168,56.01,146.44,146.32,17.0853]
[1723644799328,56.01,146.44,146.33,1.36544194]
[1723644799534,56.01,146.44,146.32,17.0853]
[1723644799745,56.01,146.47,146.36,17.081]
[1723644799927,56.01,146.5,146.39,6.8309]
[1723644800137,23.5179277,146.78,146.5,22.8494]
[1723644800433,6.5772,146.88,146.51,16.02131333]
[1723644800434,20.0,146.74,146.51,16.02131333]
[1723644800746,20.0,146.73,146.54,56.01]
[1723644800938,20.0,146.73,146.52,65.0]
[1723644800939,56.01,146.7,146.59,17.054]
[1723644801148,20.0,146.66,146.53,6.8244]
[1723644801492,76.01,146.64,146.52,20.0]
[1723644801635,76.01,146.64,146.5,29.6752]
[1723644801636,20.0,146.64,146.5,29.6752]
[1723644801833,20.0,146.6,146.5,22.8494]
[1723644802145,20.0,146.56,146.41,6.377]
[1723644802548,56.01,146.57,146.41,6.377]
[1723644802756,56.01,146.57,146.41,62.387]
[1723644802928,76.01,146.6,146.46,17.0689]
[1723644803134,20.0,146.61,146.44,56.01]
[1723644803361,20.0,146.63,146.47,56.01]
[1723644803564,56.01,146.65,146.5,73.0741]
[1723644803732,56.01,146.62,146.44,56.01]
[1723644804155,20.0,146.61,146.45,45.0]
[1723644804361,56.01,146.62,146.43,56.01]
[1723644804661,56.01,146.65,146.49,56.01]
[1723644804865,20.0,146.66,146.49,56.01]
[1723644805088,20.0,146.64,146.49,56.01]
[1723644805276,20.0,146.64,146.41,6.377]
[1723644805277,20.0,146.63,146.46,56.01]
[1723644805478,20.0,146.64,146.48,6.8268]
[1723644805669,56.01,146.62,146.49,65.0]
[1723644805871,76.01,146.62,146.49,65.0]
[1723644806074,56.01,146.62,146.49,65.0]
[1723644806275,56.01,146.65,146.51,17.0634]
[1723644806488,56.01,146.68,146.54,17.059]
[1723644806802,20.410739,146.71,146.49,121.01]
[1723644806803,0.410739,146.71,146.58,56.01]
[1723644806985,0.410739,146.71,146.59,20.0]
[1723644807285,0.410739,146.71,146.6,45.0]
[1723644807480,0.410739,146.71,146.63,17.0489]
[1723644807677,0.410739,146.71,146.6,45.0]
[1723644807678,0.410739,146.71,146.64,20.0]
[1723644807887,0.410739,146.71,146.6,45.0]
[1723644808183,20.410739,146.71,146.6,45.0]
[1723644808384,56.01,146.69,146.55,33.3218]
[1723644808598,76.01,146.69,146.55,16.2632]
[1723644808780,76.01,146.63,146.55,16.2632]
[1723644808961,56.01,146.63,146.51,6.8254]
[1723644809158,56.01,146.59,146.49,6.3017]
[1723644809366,76.01,146.62,146.49,6.3017]
[1723644809573,56.01,146.65,146.49,6.3017]
[1723644809772,20.0,146.7,146.54,56.01]
[1723644809989,76.01,146.68,146.51,62.8351]
[1723644810166,76.01,146.68,146.53,6.8245]
[1723644810493,56.01,146.68,146.51,56.01]
[1723644810789,20.0,146.66,146.52,20.0]
[1723644810996,56.01,146.65,146.52,20.0]
[1723644811288,56.01,146.68,146.53,17.061]
[1723644811473,20.0,146.67,146.54,26.8239]
[1723644811789,56.01,146.68,146.54,20.0]
[1723644811961,0.410739,146.71,146.57,56.01]
[1723644812169,20.0,146.68,146.54,20.0]
[1723644812496,0.410739,146.71,146.51,56.01]
[1723644812497,56.01,146.63,146.51,6.8254]
[1723644812810,56.01,146.63,146.49,6.3017]
[1723644812811,56.01,146.63,146.5,6.8256]
[1723644813090,56.01,146.63,146.49,6.3017]
[1723644813265,76.01,146.6,146.49,6.3017]
[1723644813467,56.01,146.57,146.49,6.3017]
[1723644814085,56.01,146.6,146.49,6.3017]
[1723644814289,56.01,146.57,146.49,6.3017]
[1723644814682,56.01,146.54,146.46,16.2632]
[1723644814877,56.01,146.51,146.42,6.1248]
[1723644815394,56.01,146.58,146.42,6.1248]
[1723644815395,76.01,146.54,146.42,6.1248]
[1723644815698,56.01,146.51,146.42,6.1248]
[1723644816682,56.01,146.54,146.42,6.1248]
[1723644816901,56.01,146.54,146.42,12.9541]
[1723644817198,56.01,146.58,146.42,12.9541]
[1723644817199,56.01,146.58,146.43,20.0]
[1723644817370,56.01,146.58,146.45,6.8282]
[1723644817566,20.0,146.57,146.46,20.0]
[1723644817787,56.01,146.58,146.44,6.8286]
[1723644818011,56.01,146.58,146.46,6.8273]
[1723644818300,76.01,146.58,146.45,17.0705]
[1723644818499,56.01,146.58,146.46,45.0]
[1723644818805,56.01,146.61,146.51,6.825]
[1723644818969,56.01,146.65,146.52,51.8249]
[1723644819172,20.0,146.63,146.49,6.826]
[1723644819375,56.01,146.62,146.5,20.0]
[1723644819587,56.01,146.59,146.47,43.8948]
[1723644819804,56.01,146.62,146.5,17.0645]
[1723644820100,76.01,146.65,146.51,20.0]
[1723644820295,76.01,146.65,146.54,6.8239]
[1723644820296,56.01,146.65,146.54,6.8239]
[1723644820499,56.01,146.65,146.53,17.0613]
[1723644820672,56.01,146.65,146.54,20.0]
[1723644820873,56.01,146.68,146.55,45.0]
[1723644821494,56.01,146.68,146.56,20.0]
[1723644821686,56.01,146.68,146.57,45.0]
[1723644821896,56.01,146.65,146.52,16.3151]
[1723644822092,76.01,146.62,146.52,16.3151]
[1723644822576,76.01,146.59,146.52,16.3151]
[1723644822773,76.01,146.59,146.44,56.01]
[1723644822774,56.01,146.56,146.44,16.3151]
[1723644823083,56.01,146.53,146.44,16.3151]
[1723644824078,56.01,146.5,146.42,6.1248]
[1723644824506,56.01,146.47,146.36,16.2209]
[1723644827002,20.0,146.5,146.36,16.2209]
[1723644827183,56.01,146.51,146.37,6.8315]
[1723644827387,20.0,146.5,146.36,40.1339]
[1723644827589,20.0,146.5,146.37,71.8319]
[1723644827813,76.01,146.51,146.39,6.8306]
[1723644827814,56.01,146.51,146.39,6.8306]
[1723644828107,56.01,146.51,146.4,20.0]
[1723644828288,56.01,146.45,146.36,16.2209]
[1723644829088,56.01,146.48,146.36,16.2209]
[1723644829316,56.01,146.48,146.36,40.134]
[1723644829889,56.01,146.48,146.36,16.2209]
[1723644830201,56.01,146.48,146.37,20.0]
[1723644830689,56.01,146.48,146.36,16.2209]
[1723644831289,56.01,146.48,146.37,20.0]
[1723644831489,56.01,146.45,146.37,20.0]
[1723644832317,56.01,146.42,146.31,16.2209]
[1723644832526,56.01,146.42,146.29,0.5566002]
[1723644833706,56.01,146.42,146.32,6.8342]
[1723644833894,20.0,146.44,146.32,6.8342]
[1723644834098,20.0,146.44,146.33,6.8338]
[1723644834295,20.0,146.44,146.3,17.088]
[1723644834507,56.01,146.39,146.29,0.5566002]
[1723644835696,56.01,146.39,146.29,7.3923002]
[1723644835929,56.01,146.42,146.29,0.5566002]
[1723644836423,56.01,146.45,146.29,56.5666002]
[1723644836614,56.01,146.45,146.31,6.8343]
[1723644836923,56.01,146.45,146.32,65.0]
[1723644838303,56.01,146.45,146.32,71.8342]
[1723644838500,56.01,146.45,146.32,65.0]
[1723644838811,56.01,146.45,146.34,6.8333]
[1723644839014,56.01,146.45,146.35,45.0]
[1723644839327,56.01,146.48,146.37,6.8319]
[1723644839527,56.01,146.51,146.38,45.0]
[1723644839730,56.01,146.48,146.38,45.0]
[1723644839894,56.01,146.48,146.37,51.8316]
[1723644840098,56.01,146.51,146.38,20.0]
[1723644840410,56.01,146.54,146.4,6.8305]
[1723644840623,56.01,146.54,146.39,51.3391]
[1723644840624,56.01,146.48,146.41,45.0]
[1723644840805,56.01,146.48,146.39,51.3391]
[1723644841229,56.01,146.45,146.37,16.274]
[1723644841732,20.0,146.46,146.34,30.0]
[1723644841733,56.01,146.42,146.34,30.0]
[1723644842818,56.01,146.44,146.34,30.0]
[1723644843215,76.01,146.44,146.34,30.0]
[1723644843429,56.01,146.44,146.34,30.0]
[1723644843609,56.01,146.4,146.34,30.0]
[1723644844544,56.01,146.37,146.34,30.0]
[1723644845715,20.0,146.42,146.29,16.7686002]
[1723644845921,56.01,146.4,146.29,16.7686002]
[1723644846434,56.01,146.44,146.29,16.7686002]
[1723644846619,56.01,146.44,146.31,6.8346]
[1723644846822,56.01,146.44,146.29,16.7686002]
[1723644846823,56.01,146.35,146.29,16.7686002]
[1723644847213,56.01,146.38,146.29,16.7686002]
[1723644848335,56.01,146.41,146.3,51.8352]
[1723644848528,76.01,146.44,146.3,45.0]
[1723644848769,56.01,146.39,146.3,45.0]
[1723644848924,56.01,146.36,146.3,45.0]
[1723644849816,56.01,146.39,146.3,45.0]
[1723644850356,20.0,146.37,146.29,0.5566002]
[1723644850641,20.0,146.35,146.29,0.5566002]
[1723644850846,56.01,146.31,146.29,0.5566002]
[1723644851723,56.01,146.34,146.29,0.5566002]
[1723644851926,56.01,146.31,146.29,0.5566002]
[1723644852434,56.01,146.37,146.29,0.5566002]
[1723644852641,76.01,146.4,146.29,0.5566002]
[1723644852818,56.01,146.37,146.29,0.5566002]
[1723644853634,56.01,146.44,146.29,0.5566002]
[1723644853635,56.01,146.4,146.3,6.1237]
[1723644853840,56.01,146.4,146.31,45.0]
[1723644854051,56.01,146.37,146.31,45.0]
[1723644855126,56.01,146.4,146.31,45.0]
[1723644855351,56.01,146.43,146.31,45.0]
[1723644855646,56.01,146.37,146.31,45.0]
[1723644856016,56.01,146.34,146.29,0.5566002]
[1723644856345,56.01,146.44,146.29,0.5566002]
[1723644856649,56.01,146.37,146.3,30.0]
[1723644857030,56.01,146.44,146.3,30.0]
[1723644857230,56.01,146.44,146.31,45.0]
[1723644857424,56.01,146.41,146.31,45.0]
[1723644858246,56.01,146.35,146.29,0.5566002]
[1723644858446,56.01,146.32,146.29,30.5566002]
[1723644858623,56.01,146.35,146.29,0.5566002]
[1723644858826,56.01,146.32,146.29,0.5566002]
[1723644859752,56.01,146.35,146.29,0.5566002]
[1723644859955,56.01,146.4,146.29,0.5566002]
[1723644860572,20.0,146.42,146.29,0.5566002]
[1723644860850,56.01,146.38,146.29,0.5566002]
[1723644861623,56.01,146.35,146.29,0.5566002]
[1723644861959,56.01,146.32,146.29,0.5566002]
[1723644862120,76.01,146.37,146.29,0.5566002]
[1723644862318,76.01,146.37,146.26,30.0]
[1723644862523,76.01,146.37,146.25,10.8252616]
[1723644863038,56.01,146.37,146.25,10.8252616]
[1723644863348,56.01,146.37,146.26,20.0]
[1723644863871,20.0,146.35,146.25,10.8252616]
[1723644864153,56.01,146.34,146.25,10.8252616]
[1723644864323,56.01,146.37,146.25,10.8252616]
[1723644864525,20.0,146.36,146.25,10.8252616]
[1723644865244,56.01,146.4,146.26,6.8367]
[1723644865451,56.01,146.44,146.28,6.3835]
[1723644865640,56.01,146.44,146.29,45.0]
[1723644865826,56.01,146.44,146.31,17.0868]
[1723644866023,56.01,146.44,146.32,45.0]
[1723644866640,56.01,146.44,146.31,51.8347]
[1723644866828,56.01,146.47,146.34,15.4468]
[1723644867163,76.01,146.51,146.35,45.0]
[1723644867323,56.01,146.51,146.35,65.0]
[1723644867647,56.01,146.51,146.35,95.0]
[1723644867947,56.01,146.54,146.4,6.8305]
[1723644868150,56.01,146.54,146.41,51.8301]
[1723644868353,56.01,146.58,146.43,6.8291]
[1723644868654,56.01,146.58,146.44,45.0]
[1723644868851,56.01,146.58,146.43,45.0]
[1723644869333,56.01,146.58,146.45,16.3403]
[1723644869536,56.01,146.58,146.46,45.0]
[1723644870450,56.01,146.58,146.47,6.1677]
[1723644870656,56.01,146.61,146.48,45.0]
[1723644870958,56.01,146.64,146.52,6.8249]
[1723644871161,56.01,146.64,146.53,71.8245]
[1723644871333,56.01,146.67,146.53,71.8245]
[1723644871655,56.01,146.67,146.54,6.824]
[1723644871829,56.01,146.7,146.57,15.9197]
[1723644872028,56.01,146.7,146.58,45.0]
[1723644872550,56.01,146.7,146.58,75.0]
[1723644872756,56.01,146.64,146.58,75.0]
[1723644872931,56.01,146.64,146.58,45.0]
[1723644873128,56.01,146.61,146.48,16.5904]
[1723644873456,40.0,146.63,146.48,16.5904]
[1723644873655,56.01,146.66,146.54,6.824]
[1723644873843,56.01,146.66,146.5,56.01]
[1723644873844,56.01,146.66,146.53,6.8244]
[1723644874175,20.0,146.69,146.53,56.01]
[1723644874176,56.01,146.69,146.53,56.01]
[1723644874371,20.0,146.76,146.6,16.0545]
[1723644874372,56.01,146.72,146.6,16.0545]
[1723644874532,56.01,146.72,146.61,0.97117879]
[1723644874733,56.01,146.72,146.61,65.0]
[1723644874953,56.01,146.72,146.61,45.0]
[1723644875934,20.8444124,146.77,146.61,45.0]
[1723644875935,56.01,146.75,146.61,51.8207]
[1723644876141,56.01,146.75,146.62,20.0]
[1723644876352,56.01,146.75,146.63,45.0]
[1723644876739,0.8444124,146.77,146.64,20.0]
[1723644876947,56.01,146.69,146.65,45.0]
[1723644877332,56.01,146.69,146.64,45.0]
[1723644878051,56.01,146.75,146.64,45.0]
[1723644878246,0.8444124,146.77,146.65,20.0]
[1723644878449,0.8444124,146.77,146.66,45.0]
[1723644878651,0.8444124,146.77,146.65,6.8189]
[1723644878948,0.8444124,146.77,146.66,75.0]
[1723644879155,56.8544124,146.77,146.66,30.0]
[1723644879459,56.01,146.74,146.66,30.0]
[1723644879962,56.01,146.74,146.63,6.4391]
[1723644879963,56.8544124,146.77,146.63,6.4391]
[1723644880166,0.8444124,146.77,146.66,6.8184]
[1723644880482,0.8444124,146.77,146.67,20.0]
[1723644880642,0.8444124,146.77,146.68,45.0]
[1723644880844,0.8444124,146.77,146.69,20.0]
[1723644881045,0.8444124,146.77,146.72,16.0903]
[1723644881244,56.01,146.89,146.74,6.201]
[1723644881459,56.01,146.89,146.75,20.0]
[1723644881764,56.01,146.89,146.76,45.0]
[1723644881946,0.834837,146.92,146.77,20.0]
[1723644882148,56.01,146.89,146.78,45.0]
[1723644882668,56.844837,146.92,146.78,45.0]
[1723644883041,56.844837,146.92,146.79,56.01]
[1723644883260,0.834837,146.92,146.81,16.6327]
[1723644883468,0.834837,146.92,146.82,65.0]
[1723644883786,56.844837,146.92,146.82,45.0]
[1723644883980,56.01,146.89,146.82,45.0]
[1723644884971,56.01,146.89,146.81,16.6327]
[1723644885338,56.844837,146.92,146.81,16.6327]
[1723644885864,56.01,146.89,146.81,16.6327]
[1723644886238,56.01,146.89,146.82,45.0]
[1723644886665,0.834837,146.92,146.82,45.0]
[1723644888061,0.834837,146.92,146.81,16.6327]
[1723644888248,20.834837,146.92,146.81,16.6327]
[1723644888852,0.834837,146.92,146.81,16.6327]
[1723644889247,0.834837,146.92,146.82,20.0]
[1723644889547,0.834837,146.92,146.82,50.0]
[1723644889769,0.834837,146.92,146.83,45.0]
[1723644890352,0.834837,146.92,146.84,62.0262]
[1723644890553,0.834837,146.92,146.85,65.0]
[1723644890767,0.834837,146.92,146.85,45.0]
[1723644891555,0.834837,146.92,146.84,6.0162]
[1723644891874,56.01,146.91,146.84,6.0162]
[1723644893069,0.834837,146.92,146.84,6.0162]
[1723644894079,0.834837,146.92,146.81,16.6327]
[1723644894246,0.834837,146.92,146.82,65.0]
[1723644894648,0.834837,146.92,146.81,16.6327]
[1723644894843,56.01,146.9,146.81,16.6327]
[1723644895146,0.834837,146.92,146.81,16.6327]
[1723644895545,56.01,146.87,146.81,16.6327]
[1723644895765,56.01,146.87,146.78,6.0716]
[1723644895968,56.01,146.84,146.74,15.831]
[1723644896280,56.01,146.84,146.75,30.0]
[1723644896452,56.01,146.84,146.74,15.831]
[1723644896650,56.01,146.81,146.74,15.831]
[1723644897156,56.01,146.84,146.74,15.831]
[1723644897360,56.01,146.87,146.74,15.831]
[1723644897581,56.01,146.87,146.75,30.0]
[1723644897780,56.01,146.9,146.75,36.8138]
[1723644897959,56.01,146.9,146.75,30.0]
[1723644897960,20.0,146.89,146.75,30.0]
[1723644898291,56.01,146.9,146.76,65.0]
[1723644898453,0.834837,146.92,146.77,56.01]
[1723644898646,20.834837,146.92,146.78,95.0]
[1723644898877,56.01,146.89,146.78,95.0]
[1723644899871,56.01,146.89,146.78,65.0]
[1723644900675,0.834837,146.92,146.74,15.831]
[1723644900676,56.01,146.83,146.74,15.831]
[1723644900874,56.01,146.83,146.75,30.0]
[1723644901051,56.01,146.86,146.75,30.0]
[1723644901645,56.01,146.8,146.75,30.0]
[1723644901846,56.01,146.8,146.72,6.4437]
[1723644902149,56.01,146.83,146.72,6.4437]
[1723644902370,56.01,146.8,146.72,6.4437]
[1723644902581,56.01,146.74,146.67,16.2127]
[1723644902988,56.01,146.74,146.59,6.2159]
[1723644902989,56.01,146.71,146.59,6.2159]
[1723644903310,56.01,146.68,146.6,30.0]
[1723644903463,20.0,146.7,146.6,30.0]
[1723644903680,20.0,146.71,146.6,30.0]
[1723644903888,56.01,146.69,146.6,30.0]
[1723644904077,56.01,146.69,146.59,6.2159]
[1723644904472,76.01,146.69,146.59,6.2159]
[1723644904675,20.0,146.71,146.5,83.340991]
[1723644904676,56.01,146.63,146.53,6.2748]
[1723644904883,56.01,146.6,146.53,6.2748]
[1723644905392,56.01,146.63,146.53,6.2748]
[1723644905992,56.01,146.66,146.53,6.2748]
[1723644906162,20.0,146.65,146.53,6.2748]
[1723644906681,56.01,146.6,146.53,6.2748]
[1723644907608,56.01,146.57,146.5,15.0944]
[1723644907769,56.01,146.54,146.47,6.1594]
[1723644908388,20.0,146.57,146.42,15.1458]
[1723644908389,56.01,146.51,146.42,15.1458]
[1723644908569,20.0,146.66,146.45,56.01]
[1723644908778,56.01,146.64,146.49,6.8263]
[1723644909094,56.01,146.64,146.48,56.01]
[1723644909283,6.2479,146.74,146.48,56.01]
[1723644909284,56.01,146.7,146.55,15.1458]
[1723644909469,56.01,146.67,146.55,15.1458]
[1723644909791,56.01,146.64,146.56,45.0]
[1723644910185,56.01,146.7,146.57,20.0]
[1723644910390,56.01,146.67,146.58,45.0]
[1723644910697,56.01,146.61,146.55,15.1458]
[1723644911185,8.03774521,146.71,146.55,15.1458]
[1723644911186,56.01,146.68,146.55,15.1458]
[1723644911787,56.01,146.65,146.55,15.1458]
[1723644911984,56.01,146.62,146.55,15.1458]
[1723644912294,6.8143,146.75,146.55,15.1458]
[1723644912295,20.0,146.71,146.55,15.1458]
[1723644912591,22.2853,146.81,146.56,26.823]
[1723644912592,56.01,146.72,146.56,26.823]
[1723644912812,56.01,146.72,146.56,20.0]
[1723644912985,56.01,146.72,146.57,6.8226]
[1723644913305,56.01,146.72,146.59,6.5717]
[1723644913491,15.4735,146.81,146.59,6.5717]
[1723644913492,56.01,146.8,146.65,6.8185]
[1723644913664,56.01,146.8,146.66,65.0]
[1723644913879,56.01,146.77,146.66,65.0]
[1723644914279,56.01,146.82,146.66,65.0]
[1723644914595,56.01,146.82,146.66,121.01]
[1723644914792,56.01,146.79,146.66,65.0]
[1723644914986,56.01,146.82,146.66,121.01]
[1723644915293,56.01,146.79,146.7,6.1182]
[1723644915490,56.01,146.73,146.64,6.4532]
[1723644915694,56.01,146.79,146.65,20.0]
[1723644916078,20.0,146.77,146.65,20.0]
[1723644916270,56.01,146.79,146.65,20.0]
[1723644916892,56.01,146.79,146.66,45.0]
[1723644917196,56.01,146.86,146.68,16.6502]
[1723644917370,56.01,146.86,146.7,56.01]
[1723644917576,56.01,146.86,146.71,20.0]
[1723644917777,20.0,146.85,146.72,45.0]
[1723644917985,56.01,146.81,146.73,20.0]
[1723644918179,56.01,146.81,146.74,45.0]
[1723644918591,56.01,146.78,146.68,16.6502]
[1723644918775,56.01,146.78,146.69,20.0]
[1723644918977,56.01,146.8,146.69,20.0]
[1723644919301,76.01,146.86,146.72,6.8155]
[1723644919302,56.01,146.86,146.72,6.8155]
[1723644919473,56.01,146.86,146.73,20.0]
[1723644919906,56.01,146.86,146.74,45.0]
[1723644920499,56.01,146.86,146.75,6.1661]
[1723644920702,56.01,146.86,146.76,65.0]
[1723644920877,56.01,146.89,146.76,65.0]
[1723644921077,20.834837,146.92,146.76,45.0]
[1723644921078,56.01,146.83,146.76,45.0]
[1723644922186,56.01,146.86,146.76,45.0]
[1723644922381,56.01,146.89,146.76,45.0]
[1723644922581,56.01,146.86,146.76,45.0]
[1723644922796,56.01,146.83,146.76,45.0]
[1723644923199,56.01,146.86,146.77,20.0]
[1723644923379,56.01,146.86,146.78,45.0]
[1723644924299,0.834837,146.92,146.8,16.6237]
[1723644924486,0.834837,146.92,146.81,51.8114]
[1723644924687,0.834837,146.92,146.82,20.0]
[1723644925005,0.834837,146.92,146.85,6.8096]
[1723644925204,0.834837,146.92,146.84,6.1166]
[1723644925505,56.01,146.91,146.86,45.0]
[1723644925893,56.01,146.91,146.84,6.1166]
[1723644925894,56.01,146.91,146.85,45.0]
[1723644926090,0.834837,146.92,146.85,51.8096]
[1723644926278,0.834837,146.92,146.86,20.0]
[1723644926474,56.01,147.0,146.87,45.0]
[1723644926703,56.01,147.0,146.88,20.0]
[1723644926918,56.01,147.03,146.89,61.0636]
[1723644927210,56.01,147.03,146.91,6.8064]
[1723644927408,0.834837,147.06,146.9,20.0]
[1723644927409,0.834837,147.06,146.93,6.8058]
[1723644927597,0.834837,147.06,146.9,20.0]
[1723644927598,0.834837,147.06,146.94,82.5492]
[1723644927786,0.834837,147.06,146.96,6.8045]
[1723644927986,0.834837,147.06,146.97,65.0]
[1723644928390,0.834837,147.06,146.97,95.0]
[1723644928585,56.01,147.14,146.98,15.8327]
[1723644928786,56.01,147.14,146.97,151.01]
[1723644928787,0.834837,147.21,147.05,62.8102]
[1723644928997,0.834837,147.21,147.11,56.01]
[1723644929197,0.834837,147.21,147.12,20.0]
[1723644929377,0.834837,147.21,147.12,71.797]
[1723644929694,10.0,147.25,147.16,56.01]
[1723644929908,10.0,147.25,147.17,65.0]
[1723644930079,10.0,147.25,147.19,56.01]
[1723644930292,10.0,147.25,147.23,6.7919]
[1723644930481,10.0,147.25,147.2,65.0]
[1723644930482,10.0,147.25,147.24,65.0]
[1723644930896,56.844837,147.36,147.27,6.6558]
[1723644930897,0.834837,147.36,147.27,6.6558]
[1723644931718,56.01,147.34,147.27,6.6558]
[1723644932083,0.834837,147.36,147.28,45.0]
[1723644932282,56.01,147.34,147.27,6.6558]
[1723644933089,56.01,147.34,147.19,6.7938]
[1723644933288,56.01,147.34,147.2,20.0]
[1723644933590,0.834837,147.36,147.2,20.0]
[1723644933591,56.01,147.31,147.2,20.0]
[1723644933834,56.01,147.28,147.17,6.4346]
[1723644934288,56.01,147.35,147.2,6.7934]
[1723644934486,56.01,147.35,147.17,13.2294]
[1723644934487,40.0,147.34,147.17,13.2294]
[1723644934707,56.01,147.31,147.18,6.7943]
[1723644934907,20.0,147.34,147.17,62.4446]
[1723644935113,56.01,147.35,147.17,62.4446]
[1723644935291,56.01,147.35,147.22,6.7924]
[1723644935488,0.834837,147.36,147.23,26.792]
[1723644935726,0.834837,147.36,147.23,20.0]
[1723644935890,0.834837,147.36,147.24,45.0]
[1723644936090,0.834837,147.36,147.25,20.0]
[1723644936349,76.01,147.35,147.25,20.0]
[1723644936531,56.01,147.32,147.17,6.4346]
[1723644936690,56.01,147.23,147.18,30.0]
[1723644936889,56.01,147.23,147.17,6.4346]
[1723644937103,56.01,147.25,147.17,6.4346]
[1723644937303,20.0,147.24,147.17,6.4346]
[1723644937595,56.01,147.19,147.1,6.4013]
[1723644937920,20.0,147.18,147.1,6.4013]